bitfinex/quotes_ETHUSD_20250722
["timestamp","ask_amount","ask_price","bid_price","bid_amount"]
[1753154800067,0.002,3723.6,3723.5,3.45814522]
[1753154800253,1e-08,3723.6,3723.5,4.49790167]
[1753154800453,1e-08,3723.6,3723.5,7.69666302]
[1753154800673,0.002,3724.4,3724.1,11.34257594]
[1753154800880,0.002,3724.4,3724.1,17.03236481]
[1753154801099,0.002,3724.4,3724.1,17.62886481]
[1753154801386,0.002,3724.4,3724.1,9.7440014]
[1753154802267,0.002,3724.4,3724.1,9.2801014]
[1753154802585,0.002,3724.4,3724.1,1.53638887]
[1753154802751,0.002,3724.4,3724.1,4.286]
[1753154803392,0.002,3724.4,3724.1,6.97121253]
[1753154804167,0.002,3724.4,3724.1,7.10481253]
[1753154804370,0.002,3724.4,3724.1,7.56771253]
[1753154804566,0.002,3724.4,3724.1,9.41141506]
[1753154806005,0.002,3724.4,3724.1,12.96141506]
[1753154806712,0.002,3724.4,3724.1,8.67541506]
[1753154806875,0.002,3724.4,3724.1,12.96041506]
[1753154807078,1e-08,3724.8,3724.1,10.27520253]
[1753154807387,1e-08,3724.8,3724.7,7.12827998]
[1753154807586,1e-08,3724.8,3724.7,11.41327998]
[1753154807786,1e-08,3724.8,3724.7,11.85447998]
[1753154807987,1e-08,3724.8,3724.7,12.00152685]
[1753154809390,1e-08,3724.8,3724.7,7.79942685]
[1753154809596,1e-08,3724.8,3724.7,9.87175744]
[1753154810092,1e-08,3724.8,3724.7,13.63165744]
[1753154810611,1e-08,3724.8,3724.7,4.59655744]
[1753154810935,1e-08,3724.8,3724.7,2.96542685]
[1753154811229,1e-08,3724.8,3724.7,7.11482685]
[1753154811583,1e-08,3724.8,3724.7,7.24842685]
[1753154812513,1e-08,3724.8,3724.7,4.56364687]
[1753154812880,1e-08,3724.8,3724.7,7.24842685]
[1753154813081,1e-08,3724.8,3724.7,8.24176048]
[1753154813881,1e-08,3724.8,3724.7,8.68296048]
[1753154814083,1e-08,3724.8,3724.7,9.43746048]
[1753154814583,1e-08,3724.8,3724.7,9.98746048]
[1753154815495,0.002,3725.6,3724.9,3.7954]
[1753154815707,0.002,3725.6,3724.8,3.2347079]
[1753154815708,0.002,3725.6,3725.5,2.68420346]
[1753154815891,0.002,3725.6,3725.5,7.92204549]
[1753154816103,0.002,3725.6,3725.5,8.33640346]
[1753154816704,0.002,3725.6,3725.5,8.88640346]
[1753154817030,0.002,3725.6,3725.5,10.62617395]
[1753154817623,0.002,3725.6,3725.5,13.62617395]
[1753154819145,0.002,3725.6,3725.5,13.82489342]
[1753154819442,1e-08,3725.6,3725.5,13.82489342]
[1753154820230,1e-08,3726.3,3726.2,2.68369921]
[1753154820544,1e-08,3726.3,3726.2,17.11119975]
[1753154820704,1e-08,3726.3,3726.2,17.55239975]
[1753154820905,1e-08,3726.3,3726.2,13.27239975]
[1753154821120,1e-08,3726.3,3726.2,11.17539921]
[1753154821318,1e-08,3726.3,3726.2,2.68369921]
[1753154821557,0.46770001,3726.3,3725.2,0.7705]
[1753154821843,0.46770001,3726.3,3725.3,6.96432949]
[1753154822142,3.46770001,3726.3,3725.5,2.68413313]
[1753154822440,0.46770001,3726.3,3725.6,6.96413115]
[1753154822651,0.46770001,3726.3,3725.6,4.28]
[1753154822817,0.46770001,3726.3,3724.7,0.91754687]
[1753154823011,0.7721,3725.9,3725.1,2.68442712]
[1753154823212,0.4677,3725.8,3725.2,4.279]
[1753154823641,0.4677,3725.8,3725.3,2.68434224]
[1753154823846,0.4677,3725.8,3725.2,4.279]
[1753154824212,0.4677,3725.8,3725.6,2.684127]
[1753154824541,0.4677,3725.8,3725.6,4.279]
[1753154824747,0.7721,3725.9,3725.6,4.279]
[1753154825244,0.7721,3725.9,3725.7,2.68405565]
[1753154825429,0.7721,3725.9,3725.7,2.68398864]
[1753154825746,0.7721,3725.9,3725.8,2.68398733]
[1753154826150,0.7721,3725.9,3725.8,4.279]
[1753154826444,1.2398,3725.9,3725.8,6.96298733]
[1753154826741,0.7721,3725.9,3725.8,6.96298733]
[1753154827243,0.83200001,3726.3,3725.8,4.279]
[1753154827447,1e-08,3726.3,3726.2,2.68369921]
[1753154827647,1e-08,3726.3,3726.2,6.9895362]
[1753154827958,1e-08,3726.3,3726.2,6.96269921]
[1753154828613,1e-08,3726.3,3726.2,7.40389921]
[1753154828812,1e-08,3726.3,3726.2,8.48876966]
[1753154829421,1e-08,3726.3,3726.2,9.03876966]
[1753154829627,1e-08,3726.3,3726.2,12.79976966]
[1753154830246,1e-08,3726.3,3726.2,12.93336966]
[1753154830445,1e-08,3726.3,3726.2,15.08895466]
[1753154830832,1e-08,3726.3,3726.2,12.93336966]
[1753154831852,0.002,3727.8,3727.7,2.6826193]
[1753154832017,0.002,3727.8,3726.9,0.55]
[1753154832018,0.002,3727.8,3727.1,5.36610232]
[1753154832221,0.002,3727.8,3727.7,2.8162193]
[1753154832417,0.002,3727.8,3727.7,7.0932193]
[1753154833745,0.002,3727.8,3727.7,2.8162193]
[1753154833974,0.002,3727.8,3727.7,7.0932193]
[1753154835861,0.002,3727.8,3727.7,7.0922193]
[1753154836758,0.4697,3727.8,3727.7,7.0922193]
[1753154837140,0.4697,3727.8,3727.7,4.4096]
[1753154837678,0.4697,3727.8,3727.7,4.276]
[1753154837679,1.2383,3727.8,3727.7,4.276]
[1753154838263,1.2383,3727.8,3727.4,2.68283522]
[1753154838440,0.4312,3727.7,3727.5,4.276]
[1753154838849,0.7706,3727.8,3727.2,0.1336]
[1753154838850,0.4312,3727.6,3727.2,0.1336]
[1753154839158,0.9022,3727.4,3727.2,4.275]
[1753154839330,0.4312,3727.3,3727.2,4.275]
[1753154839669,0.4312,3727.3,3727.0,4.275]
[1753154839843,0.9022,3727.4,3727.0,4.275]
[1753154840045,0.4312,3727.2,3727.0,4.275]
[1753154840241,0.4312,3727.1,3727.0,6.95811857]
[1753154840628,0.4312,3727.1,3727.0,4.275]
[1753154841448,0.4312,3727.1,3726.8,0.1336]
[1753154841754,0.4312,3727.0,3726.9,4.275]
[1753154842464,0.4312,3727.0,3726.9,6.95819514]
[1753154842652,0.4312,3727.0,3726.9,4.275]
[1753154844249,1.2079,3727.0,3726.9,4.275]
[1753154844458,1.3415,3727.0,3726.9,4.275]
[1753154844661,1.3415,3727.0,3726.7,4.275]
[1753154844969,0.4312,3726.9,3726.2,4.275]
[1753154845270,0.1336,3726.7,3726.4,2.68351927]
[1753154845568,0.4312,3726.6,3726.5,6.95847773]
[1753154845735,0.4312,3726.6,3726.5,4.275]
[1753154846637,0.4312,3726.6,3725.6,7.8700645]
[1753154846638,0.8137,3726.5,3726.4,4.275]
[1753154846840,1.2449,3726.5,3726.1,2.68371731]
[1753154847036,1.2449,3726.5,3725.3,7.224]
[1753154847037,0.4312,3726.4,3725.3,7.224]
[1753154847377,0.4312,3726.4,3725.6,4.275]
[1753154847867,0.4312,3726.4,3725.7,2.68405937]
[1753154848068,0.4312,3726.4,3726.0,2.68383222]
[1753154848279,0.4312,3726.4,3726.1,6.95876779]
[1753154848460,0.4312,3726.3,3726.1,4.275]
[1753154848664,0.4312,3726.2,3726.1,4.275]
[1753154850899,0.4312,3726.2,3725.5,1.0235]
[1753154851047,0.8137,3726.1,3725.6,4.274]
[1753154851371,0.4312,3726.0,3725.6,4.274]
[1753154851552,0.4312,3725.9,3725.5,0.001]
[1753154851754,0.4312,3725.9,3725.5,4.275]
[1753154852084,0.4312,3725.8,3725.6,2.68407344]
[1753154852578,0.4312,3725.8,3725.6,2.68413141]
[1753154852877,0.818,3726.6,3726.1,2.68371976]
[1753154853176,0.4312,3726.5,3726.2,4.274]
[1753154853381,0.818,3726.6,3726.2,4.274]
[1753154853550,0.818,3726.6,3726.2,4.99661378]
[1753154853775,2.68299358,3727.2,3726.2,4.99661378]
[1753154853776,0.818,3727.2,3726.2,7.68031287]
[1753154853980,0.4312,3727.1,3726.5,2.68345938]
[1753154854178,0.4312,3727.1,3726.6,0.02683411]
[1753154854509,0.818,3727.2,3726.5,4.274]
[1753154854690,0.818,3727.2,3727.1,2.68305116]
[1753154854884,0.818,3727.2,3726.9,6.95712854]
[1753154855085,0.4312,3727.1,3726.9,4.274]
[1753154855285,0.818,3727.2,3726.9,6.95719514]
[1753154855286,0.4312,3727.0,3726.9,6.95719514]
[1753154855493,0.818,3727.2,3726.9,6.95719514]
[1753154856011,0.4312,3727.1,3726.9,4.274]
[1753154856207,0.4312,3727.0,3725.7,0.7966]
[1753154856513,3.50121765,3726.9,3726.1,2.68371578]
[1753154856811,0.1336,3726.6,3726.2,4.274]
[1753154857500,0.1336,3726.6,3726.2,6.95763479]
[1753154857501,0.4312,3726.5,3726.2,6.95763479]
[1753154858004,3.818,3726.9,3726.0,2.68382739]
[1753154858005,0.4312,3726.4,3726.0,2.68382739]
[1753154858209,0.4312,3726.4,3726.2,4.274]
[1753154858419,0.4312,3726.3,3725.6,0.82950734]
[1753154858617,0.1336,3726.0,3725.8,2.68392456]
[1753154858789,0.4312,3726.5,3726.0,2.68383114]
[1753154858992,0.1336,3726.3,3726.1,6.95675072]
[1753154859195,0.5648,3726.3,3726.1,6.95675072]
[1753154859395,0.1336,3726.3,3726.2,2.68369921]
[1753154860132,0.1336,3726.3,3726.2,3.64775989]
[1753154860334,0.7918,3726.7,3726.6,2.68341115]
[1753154860623,0.1336,3726.9,3726.6,2.68341115]
[1753154860774,0.1336,3726.9,3726.7,2.68333231]
[1753154860979,0.1336,3726.9,3726.8,2.68326714]
[1753154861237,0.1336,3726.9,3726.4,6.95648476]
[1753154861393,0.5648,3726.9,3726.6,2.68333966]
[1753154861611,0.4312,3726.8,3726.4,4.273]
[1753154861814,0.5648,3726.7,3726.4,4.273]
[1753154862026,0.5648,3726.7,3726.4,6.95654223]
[1753154862546,3.0,3727.6,3726.6,0.7572]
[1753154862697,0.7863,3727.8,3726.8,2.68326714]
[1753154862900,0.7863,3727.8,3727.2,2.81653526]
[1753154863200,0.7863,3727.8,3727.6,2.68266532]
[1753154863499,0.7863,3727.8,3727.4,2.68276611]
[1753154863699,0.4312,3727.7,3727.4,2.68276611]
[1753154863931,0.002,3727.8,3727.5,2.70959087]
[1753154864242,0.002,3727.8,3727.7,2.6826193]
[1753154864445,0.002,3727.8,3727.7,2.70944549]
[1753154864742,0.002,3727.8,3727.7,3.31014549]
[1753154865502,0.002,3727.8,3727.7,3.2833193]
[1753154865806,0.002,3727.8,3727.7,5.26756806]
[1753154866003,0.002,3728.3,3727.7,5.26756806]
[1753154866004,0.002,3728.3,3728.2,3.23225953]
[1753154866234,0.002,3728.3,3728.2,16.18012403]
[1753154866435,0.002,3728.3,3728.2,16.64722403]
[1753154866610,0.4312,3729.8,3728.5,2.68204371]
[1753154866825,0.4312,3729.8,3728.5,9.09918505]
[1753154867032,0.4312,3729.8,3728.5,9.56168505]
[1753154867210,0.8297,3729.9,3728.5,9.56168505]
[1753154867211,0.4425,3729.5,3728.5,9.09918505]
[1753154867407,0.8297,3729.9,3728.5,4.82818505]
[1753154867608,0.8297,3729.9,3726.2,2.68365272]
[1753154867609,1.2156,3729.0,3728.0,2.68234549]
[1753154867831,0.4425,3728.5,3728.2,2.68224015]
[1753154868019,0.7731,3729.0,3728.1,4.27]
[1753154868225,0.7731,3729.0,3728.5,2.68204371]
[1753154868420,0.7731,3729.0,3728.5,6.95204371]
[1753154868621,0.7731,3729.0,3728.5,4.27]
[1753154868839,0.4445,3728.6,3728.5,4.27]
[1753154869377,0.4445,3728.6,3728.3,4.27]
[1753154869668,0.78695,3728.5,3728.3,4.27]
[1753154870026,0.4425,3728.5,3728.3,4.27]
[1753154870227,0.002,3728.6,3728.5,2.68204371]
[1753154870859,0.002,3728.6,3728.5,3.14454371]
[1753154871444,0.002,3728.6,3728.5,3.94786414]
[1753154871968,0.002,3728.6,3728.5,3.92104371]
[1753154872260,0.002,3728.6,3728.5,9.85518529]
[1753154872429,0.002,3728.6,3728.5,9.82836486]
[1753154872756,0.002,3728.6,3728.5,12.82836486]
[1753154873623,1e-08,3728.6,3728.5,12.82836486]
[1753154875336,1e-08,3728.6,3728.5,12.82736486]
[1753154875521,1e-08,3728.6,3728.5,8.09586486]
[1753154875722,1e-08,3728.6,3728.5,11.81386486]
[1753154875956,1e-08,3728.6,3728.5,8.81386486]
[1753154876260,1e-08,3728.6,3728.5,7.08364371]
[1753154877569,1e-08,3728.6,3728.5,4.4016]
[1753154877857,1e-08,3728.6,3728.5,7.08364371]
[1753154879045,1e-08,3728.6,3728.5,7.54614371]
[1753154880178,1e-08,3728.6,3728.5,8.91024371]
[1753154880357,1e-08,3728.6,3728.5,9.05698667]
[1753154880557,1e-08,3728.6,3728.5,7.08264371]
[1753154881380,1e-08,3728.6,3728.5,7.54514371]
[1753154882397,1e-08,3728.6,3728.5,8.09514371]
[1753154882689,1e-08,3728.6,3728.5,8.88194371]
[1753154883178,1e-08,3728.6,3728.5,11.88194371]
[1753154883483,1e-08,3728.6,3728.5,13.91974939]
[1753154887544,0.002,3729.1,3729.0,3.23168409]
[1753154887749,0.002,3729.1,3729.0,7.49768409]
[1753154888082,0.002,3729.1,3729.0,2.81528409]
[1753154888288,0.002,3729.1,3729.0,7.08028409]
[1753154888469,0.002,3729.1,3729.0,7.28141687]
[1753154889178,0.002,3729.1,3729.0,0.33473278]
[1753154889376,0.4445,3729.1,3729.0,4.3986]
[1753154889677,0.4445,3729.1,3729.0,4.265]
[1753154890985,0.4445,3729.1,3728.8,2.68182793]
[1753154891300,0.002,3729.1,3728.9,4.265]
[1753154891447,0.002,3729.1,3729.0,0.02681684]
[1753154891644,0.002,3729.1,3729.0,2.68168409]
[1753154893586,0.002,3729.1,3729.0,3.49777531]
[1753154893747,0.002,3729.1,3729.0,3.52459215]
[1753154893947,0.002,3729.1,3729.0,3.49777531]
[1753154894152,0.002,3729.1,3729.0,3.52459215]
[1753154894653,0.002,3729.1,3729.0,8.25109215]
[1753154894880,0.002,3729.1,3729.0,8.22427531]
[1753154895484,0.002,3729.1,3729.0,8.77427531]
[1753154896282,1e-08,3729.1,3729.0,11.77427531]
[1753154896587,0.002,3729.3,3729.2,5.68154027]
[1753154896752,0.002,3729.3,3729.2,11.48222183]
[1753154896949,1e-08,3729.3,3729.2,12.07832183]
[1753154897355,0.002,3730.0,3729.9,2.68103702]
[1753154897650,0.002,3730.0,3729.9,14.80940379]
[1753154897878,0.002,3730.0,3729.9,16.73610379]
[1753154898079,0.002,3730.6,3730.5,2.68060581]
[1753154898286,0.002,3730.6,3730.5,14.94257258]
[1753154898583,0.002,3730.6,3730.5,7.07720581]
[1753154898955,0.002,3730.6,3730.5,15.40827258]
[1753154899152,0.002,3730.6,3730.5,15.95827258]
[1753154899470,0.002,3730.6,3730.5,21.93592308]
[1753154899778,0.002,3730.6,3730.5,8.65726172]
[1753154900087,0.002,3730.6,3730.5,12.14286172]
[1753154900258,0.002,3730.6,3730.5,12.47496172]
[1753154900656,0.002,3730.6,3730.5,13.02496172]
[1753154900856,0.7933,3731.8,3731.7,2.67974381]
[1753154901191,0.4353,3731.9,3731.8,2.679672]
[1753154901395,0.4353,3731.8,3731.7,4.262]
[1753154901575,0.4353,3731.8,3731.6,4.262]
[1753154901775,0.7557,3731.7,3731.6,4.262]
[1753154902095,1.191,3731.7,3731.6,4.262]
[1753154902776,1.191,3731.7,3731.5,4.261]
[1753154902975,3.11518237,3731.6,3731.4,4.261]
[1753154903158,0.4353,3731.5,3731.4,4.261]
[1753154903361,0.4353,3731.5,3730.8,2.68037578]
[1753154903556,0.8061,3731.4,3730.9,4.261]
[1753154903756,0.8061,3731.4,3729.9,2.69552386]
[1753154903757,0.4353,3731.3,3729.9,2.69552386]
[1753154903953,3.50747576,3731.3,3730.4,2.68064241]
[1753154904158,1.2414,3731.2,3730.5,4.261]
[1753154904604,0.4353,3731.1,3730.6,2.68053396]
[1753154904806,0.4353,3731.1,3730.7,4.261]
[1753154905107,0.4353,3731.0,3730.7,6.9414503]
[1753154905269,0.8061,3731.2,3730.7,6.9414503]
[1753154905270,0.8061,3731.2,3730.7,4.261]
[1753154905488,0.4353,3730.9,3730.8,4.26]
[1753154905991,0.4353,3730.9,3730.2,2.68075378]
[1753154906188,0.4353,3731.0,3730.3,6.94074121]
[1753154906362,0.4353,3731.0,3730.9,2.68031842]
[1753154906892,0.4353,3731.0,3730.7,2.6803955]
[1753154907060,0.4353,3730.9,3730.8,4.26]
[1753154907459,1.2414,3731.2,3730.9,2.6802476]
[1753154907661,0.8061,3731.2,3731.1,2.68017474]
[1753154907893,1.2414,3731.2,3730.8,6.94039018]
[1753154908091,0.4353,3731.1,3730.8,6.94039018]
[1753154908389,0.8061,3731.2,3730.8,6.94039018]
[1753154908590,0.4353,3731.0,3730.9,2.68031842]
[1753154909480,0.4353,3731.0,3730.9,4.26]
[1753154909795,0.4353,3731.0,3730.9,6.94025285]
[1753154910165,0.8061,3731.2,3731.1,2.68017474]
[1753154910793,0.8061,3731.2,3731.0,2.68023297]
[1753154910980,0.8061,3731.2,3730.9,4.26]
[1753154911295,0.4353,3731.1,3731.0,2.68018871]
[1753154911492,0.8061,3731.2,3731.1,2.68017474]
[1753154911991,0.8061,3731.2,3731.0,0.1336]
[1753154911992,1.2414,3731.2,3731.0,0.1336]
[1753154912179,0.4353,3731.1,3730.8,2.68039026]
[1753154912360,0.4353,3731.1,3730.8,2.81399026]
[1753154913299,0.4353,3731.0,3730.9,4.259]
[1753154913898,0.3353,3731.0,3730.9,4.259]
[1753154914079,0.3353,3731.0,3730.6,0.1336]
[1753154914080,0.73080531,3731.0,3730.6,0.1336]
[1753154914274,0.75,3730.7,3730.1,0.1336]
[1753154914480,0.75,3730.7,3730.2,4.258]
[1753154914675,0.75,3730.7,3730.6,2.68053396]
[1753154915011,0.75,3730.7,3730.6,7.07213396]
[1753154915307,0.1336,3731.2,3730.7,2.68046211]
[1753154915612,0.8836,3731.4,3731.1,2.68017474]
[1753154915785,0.8836,3731.4,3731.1,4.258]
[1753154915989,0.4353,3731.3,3731.1,4.258]
[1753154916179,0.8836,3731.4,3731.1,4.258]
[1753154916180,0.4353,3731.2,3731.1,6.93817474]
[1753154916393,0.8836,3731.4,3731.1,6.93817474]
[1753154916730,0.8836,3731.4,3731.1,4.258]
[1753154916731,0.4353,3731.3,3731.1,4.258]
[1753154917023,0.4353,3731.2,3731.1,4.258]
[1753154917227,0.8836,3731.4,3731.2,2.68007971]
[1753154917542,0.002,3731.7,3731.4,2.67994037]
[1753154917693,0.002,3731.7,3731.5,4.258]
[1753154917892,0.4373,3731.7,3731.5,4.258]
[1753154918195,0.4373,3731.7,3731.5,6.93787598]
[1753154918590,0.002,3731.7,3731.5,4.258]
[1753154918796,0.75,3731.5,3731.3,4.258]
[1753154919135,0.4353,3731.4,3731.3,4.258]
[1753154919338,0.4353,3731.4,3730.9,0.1336]
[1753154919500,0.4353,3731.3,3730.9,0.1336]
[1753154919691,0.4353,3731.3,3730.1,0.98332198]
[1753154919692,0.4353,3731.3,3731.0,4.257]
[1753154919896,0.1336,3730.9,3730.8,4.257]
[1753154920110,0.5689,3730.9,3730.8,4.257]
[1753154920711,0.5689,3730.9,3730.2,0.1336]
[1753154920915,0.5689,3730.9,3730.3,4.257]
[1753154921300,2.68044653,3730.8,3730.2,0.1336]
[1753154921504,0.1336,3730.6,3730.3,4.257]
[1753154921936,0.5689,3730.6,3730.0,2.81454842]
[1753154922104,0.5689,3730.6,3730.1,6.93788457]
[1753154923018,0.5689,3730.6,3730.2,2.68081375]
[1753154923331,1.2011,3730.5,3729.4,3.0]
[1753154923532,0.1336,3730.4,3729.9,2.68098199]
[1753154923844,0.1336,3730.4,3730.1,2.68089327]
[1753154924349,0.1336,3730.4,3730.0,6.93792199]
[1753154924530,0.1336,3730.4,3730.1,2.68087111]
[1753154924749,0.1336,3730.6,3730.4,2.68063667]
[1753154925089,0.7658,3731.2,3731.1,2.68017474]
[1753154925353,0.1336,3731.4,3731.0,4.257]
[1753154925523,0.1336,3731.4,3731.1,6.93716738]
[1753154925735,0.1336,3731.4,3731.1,4.257]
[1753154925933,15.47069861,3733.2,3731.6,2.67981562]
[1753154925934,0.7658,3732.2,3731.6,2.67981562]
[1753154926242,0.7658,3732.2,3731.6,6.93581562]
[1753154927016,0.4353,3732.1,3731.6,6.93581562]
[1753154929754,0.7658,3732.2,3731.6,6.93581562]
[1753154930120,0.7658,3732.2,3731.6,7.39661562]
[1753154931151,0.002,3732.5,3731.6,8.75081562]
[1753154931363,0.002,3732.5,3731.6,9.91420873]
[1753154931651,0.4392,3732.5,3731.6,4.64740873]
[1753154931836,1.1975,3732.3,3731.6,8.09820873]
[1753154933955,0.4372,3731.9,3731.6,4.254]
[1753154934263,1.2555,3731.7,3731.6,4.254]
[1753154934462,1.2555,3731.7,3730.5,2.68059594]
[1753154934664,2.67984404,3731.6,3730.8,2.68035977]
[1753154934964,0.4372,3731.5,3730.4,0.7859]
[1753154935166,0.4372,3731.5,3730.1,2.68084241]
[1753154935167,2.68027264,3731.0,3730.1,2.68084241]
[1753154935460,1.2535,3730.9,3730.2,4.254]
[1753154935827,0.1336,3730.6,3730.2,4.254]
[1753154936028,0.5708,3730.6,3730.2,4.254]
[1753154936667,0.5708,3730.6,3730.2,6.93481348]
[1753154937267,0.5708,3730.6,3730.3,6.93471537]
[1753154937643,0.5708,3730.6,3730.4,2.68067456]
[1753154938559,0.1336,3730.6,3730.4,2.68067456]
[1753154938878,0.1336,3730.6,3730.3,6.93473941]
[1753154939248,0.1336,3730.6,3730.4,2.6806775]
[1753154939769,0.1336,3730.6,3730.3,6.93473858]
[1753154940066,0.8305,3730.4,3730.0,4.254]
[1753154940848,1.2677,3730.4,3730.0,4.254]
[1753154941038,0.8305,3730.4,3730.2,2.68080279]
[1753154941378,0.8305,3730.4,3730.3,2.68074953]
[1753154941771,0.8305,3730.4,3730.3,4.254]
[1753154941976,1.2677,3730.9,3730.3,4.254]
[1753154942578,1.2677,3730.9,3730.3,4.28080749]
[1753154942738,3.0,3730.7,3729.5,3.69965473]
[1753154942946,0.8323,3730.5,3729.6,6.93525268]
[1753154943188,2.68069102,3730.4,3729.6,6.93525268]
[1753154943489,0.4372,3730.3,3729.7,4.254]
[1753154943653,3.11802137,3730.3,3729.8,4.254]
[1753154943844,2.6806836,3730.4,3729.9,4.254]
[1753154944057,0.4372,3730.2,3729.9,4.254]
[1753154944401,3.11802216,3730.2,3729.9,4.254]
[1753154944552,0.4372,3730.1,3729.9,4.254]
[1753154944756,0.4372,3730.1,3729.4,0.001]
[1753154944953,0.4372,3730.0,3729.5,6.93430903]
[1753154945549,3.1178942,3730.4,3729.6,2.68125268]
[1753154945746,0.4372,3730.4,3729.5,8.53908491]
[1753154945973,0.4372,3730.4,3729.8,2.68107022]
[1753154946184,0.4372,3730.4,3729.9,4.254]
[1753154946477,3.4372,3730.4,3729.9,4.254]
[1753154946681,3.0,3730.4,3729.9,4.254]
[1753154946846,0.4372,3730.3,3729.9,4.254]
[1753154947898,0.4372,3730.2,3729.9,4.254]
[1753154949305,0.4372,3730.2,3729.9,4.255]
[1753154949886,0.1336,3730.1,3729.9,6.93598067]
[1753154950106,0.1336,3730.1,3729.9,4.255]
[1753154950603,0.1336,3730.1,3729.9,0.001]
[1753154950776,0.1336,3730.1,3730.0,4.253]
[1753154951110,0.8323,3730.5,3730.3,2.68072292]
[1753154951281,2.68003396,3731.3,3730.3,2.68072292]
[1753154951282,0.1336,3730.6,3730.5,2.68054766]
[1753154951470,0.1336,3730.6,3730.4,7.39446884]
[1753154951671,0.1336,3730.6,3730.3,2.68073761]
[1753154951920,0.1336,3730.6,3730.4,4.253]
[1753154952338,0.1336,3730.6,3730.0,0.82710953]
[1753154952615,0.002,3731.7,3730.1,4.253]
[1753154952616,0.9502,3730.4,3730.1,4.253]
[1753154952820,0.4372,3730.3,3730.1,4.253]
[1753154953189,0.8166,3730.4,3730.1,4.253]
[1753154953874,0.8166,3730.4,3730.1,6.93388762]
[1753154954221,0.8166,3730.4,3730.1,4.253]
[1753154954406,0.8166,3730.4,3730.3,2.68074953]
[1753154954908,0.8166,3730.7,3730.3,2.68074953]
[1753154955107,0.8166,3730.7,3730.4,2.68066762]
[1753154955311,0.8166,3730.7,3730.5,2.68060301]
[1753154955507,0.8166,3730.7,3730.2,4.252]
[1753154955508,0.4372,3730.6,3730.2,4.252]
[1753154955814,0.1336,3730.4,3730.2,6.93281853]
[1753154956177,0.4372,3730.3,3730.2,4.252]
[1753154956818,0.1336,3730.4,3730.2,6.9328214]
[1753154957025,0.1336,3730.4,3730.2,4.252]
[1753154957221,0.1336,3730.4,3730.3,2.68074953]
[1753154959923,0.5644,3730.4,3730.2,4.251]
[1753154960072,0.4308,3730.3,3730.2,4.251]
[1753154961715,0.4308,3730.3,3730.1,6.93188788]
[1753154962015,0.1336,3730.4,3730.2,4.251]
[1753154962317,0.5644,3730.4,3730.2,4.251]
[1753154962517,0.1256,3730.4,3729.9,2.68201997]
[1753154962719,0.4308,3730.3,3730.0,2.68096111]
[1753154962929,0.1256,3730.4,3729.9,2.68201987]
[1753154963101,0.4308,3730.2,3730.1,4.251]
[1753154963284,0.4308,3730.2,3729.9,0.001]
[1753154963491,0.1336,3730.1,3730.0,4.251]
[1753154964189,0.5644,3730.1,3730.0,4.251]
[1753154964717,0.1336,3730.1,3730.0,4.251]
[1753154965120,0.5644,3730.1,3729.9,0.001]
[1753154965322,0.5644,3730.1,3730.0,4.25]
[1753154965521,0.5644,3730.1,3729.9,0.001]
[1753154965745,0.5644,3730.1,3730.0,4.25]
[1753154966216,0.1336,3730.1,3730.0,4.25]
[1753154966924,0.1336,3730.1,3729.9,0.001]
[1753154967240,0.4308,3730.0,3729.9,0.001]
[1753154968524,3.88146514,3730.0,3729.9,0.001]
[1753154969491,6.88146514,3730.0,3729.9,0.001]
[1753154970323,7.43146514,3730.0,3729.9,0.001]
[1753154972547,21.93146514,3730.0,3729.9,0.001]
[1753154973845,21.93146514,3730.0,3729.9,1e-08]
[1753154974246,3.98692457,3729.5,3729.4,0.001]
[1753154974544,11.23592457,3729.5,3729.4,0.001]
[1753154974933,26.16672457,3729.5,3729.4,0.001]
[1753154975139,26.16672457,3729.5,3729.4,1e-08]
[1753154976612,26.37215664,3729.5,3729.4,1e-08]
[1753154980466,21.36772457,3729.5,3729.4,1e-08]
[1753154980752,25.61672457,3729.5,3729.4,1e-08]
[1753154980952,22.61672457,3729.5,3729.4,1e-08]
[1753154981115,15.6864,3729.5,3729.4,1e-08]
[1753154981316,15.2556,3729.5,3729.4,1e-08]
[1753154981531,19.5046,3729.5,3729.4,1e-08]
[1753154981728,22.5046,3729.5,3729.4,1e-08]
[1753154982141,25.18592457,3729.5,3729.4,1e-08]
[1753154982342,26.16672457,3729.5,3729.4,1e-08]
[1753154985312,11.66672457,3729.5,3729.4,1e-08]
[1753154987045,14.48772457,3729.5,3729.4,1e-08]
[1753154987592,11.66672457,3729.5,3729.4,1e-08]
[1753154987788,14.48772457,3729.5,3729.4,1e-08]
[1753154988449,7.03306837,3729.3,3729.2,1e-08]
[1753154988651,11.28106837,3729.3,3729.2,1e-08]
[1753154988883,7.46276837,3729.3,3729.2,1e-08]
[1753154989256,11.16076837,3729.3,3729.2,1e-08]
[1753154989576,7.73106837,3729.3,3729.2,1e-08]
[1753154989757,11.28106837,3729.3,3729.2,1e-08]
[1753154990700,7.247,3729.3,3729.2,1e-08]
[1753154990841,4.247,3729.3,3729.2,1e-08]
[1753154991045,9.92846837,3729.3,3729.2,1e-08]
[1753154992184,11.70976837,3729.3,3729.2,1e-08]
[1753154996088,7.16814027,3729.2,3729.1,1e-08]
[1753154996294,7.59784027,3729.2,3729.1,1e-08]
[1753154999388,7.59784027,3729.2,3728.5,0.001]
[1753154999389,0.55,3728.7,3728.5,0.001]
[1753154999566,11.25357178,3728.6,3728.5,0.001]
[1753154999765,11.68327178,3728.6,3728.5,0.001]
[1753154999983,11.68327178,3728.6,3728.5,1e-08]